{"text_format":"2","workbook":"xlsx","n_sheets":1,"sheets":["Addendum 1"],"not_rendered":{"charts":0,"images":1,"macros":0,"external_links":0,"defined_names":1,"comments":0,"pivot_tables":0},"unopened":[],"bounds":{"document_bytes":16777216,"sheet_cells":100000,"run_cost":"one","rows_first":2000,"rows_last":500,"rows_between":2000,"halvings":0,"cell_chars":16384,"cell_head_chars":4096},"cells_cut":0,"cells_raw":0,"read":"whole","date_system":"1900"}

{"sheet":"Addendum 1","index":0,"n_rows":55,"n_cols":8,"rows_kept":55,"cut":false,"hidden":false,"merged":[[2,3,2,6],[3,0,5,0],[3,1,5,1],[3,2,5,2],[3,3,5,3],[3,4,5,4],[3,5,5,5],[3,6,5,6],[1,3,1,6],[0,1,0,6]]}
[null,"Addendum 1 to the RFQ No. UNFPA/UKR/20/06"]
[]
[]
["#","List of required services","Comments / additional notes","Unit Price (UAH)","Quantity, units/rooms","Quantity, units, days…","Total (UAH)"]
[]
[]
[1,"Accommodation","a nearby hotel"]
[null,"Standard Single Room","26-28.02.2020\n",null,35,2,{"$f":"D8*E8*F8","v":0}]
[]
[2,"Meals"]
[null,"Bottled mineral water (0.5) sparkling/still (50/50)","26-28.02.2020",null,105,3,{"$f":"D11*E11*F11","v":0}]
[null,"Coffee-breaks","26-28.02.2020 (26.02 і 28.02 - 1 coffee-break, 27.02 - 2 coffee-breaks)",null,35,4,0]
[null,"Lunch","27-28.02.2020",null,35,2,0]
[null,"Dinned","26-27.02.2020",null,35,2,0]
[null,"Dinner-boxes","28.02.2020",null,35,1,{"$f":"D15*E15*F15","v":0}]
[]
[3,"Rent of premise"]
[null,"Conference room","- availability to organize nearby outdoor activity is a must;\n- good Wi-Fi connection;",null,1,3,0]
[]
[4,"Equipment"]
[null,"Projector",null,null,1,3,0]
[null,"Screen",null,null,1,3,0]
[null,"Laptop",null,null,1,3,0]
[null,"Flipchart",null,null,4,3,0]
[null,"Flipchart paper",null,null,4,1,{"$f":"D25*E25*F25","v":0}]
[null,"Markers for flipchart","set of color markers",null,4,1,{"$f":"D26*E26*F26","v":0}]
[null,"Sound system",null,null,1,3,0]
[null,"Microphone",null,null,2,3,0]
[]
[5,"Printing materials"]
[null,"Folder A4 with logos",null,null,35,1,0]
[null,"Notebook A5 with logos on every page",null,null,35,1,0]
[null,"pan with logos",null,null,35,1,0]
[null,"printing materials A4, color",null,null,35,100,0]
[null,"Certificates","design services must be included",null,35,1,0]
[null,"Badges",{"$nulls":4},0]
[null,"Flash drives with logos",null,null,35,1,0]
[null,"Thematical crowns made of cardboard with logos for children and parents","design services must be included",null,100,1,0,"crown example:"]
[null,"Power-bank with logos and motivating quote",null,null,35,1,0]
[]
[6,"Services"]
[null,"Animator for activities for childer with parents","28.02.2020 2 hours",null,1,1,0]
[null,"Aqua make up","28.02.2020 2 hours",null,1,1,0]
[null,"Photographer","2 hours"]
[]
[7,"Tickets reimbursement"]
[null,"Reimbursement of tickets costs for participants","incl. possibility to organize a transfer",null,35,1,0]
[]
[8,"Event manager support",null,null,1,2,0]
[]
[9,"Involved experts","remuneration - UAH 5000 each",null,2,1,0]
[]
[null,"Total",{"$nulls":4},{"$f":"SUM(G7:G52)","v":0}]
[null,"Service fee"]
[null,"Total net of VAT:",{"$nulls":4},{"$f":"G53+G54","v":0}]